bitfinex-derivatives/quotes_ETHF0:USTF0_20250110
["timestamp","ask_amount","ask_price","bid_price","bid_amount"]
[1736512029552,1.217,3300.0,3299.5,0.9352]
[1736512029755,1.217,3300.0,3299.9,0.30305]
[1736512031151,3.51083,3300.1,3300.0,0.30304]
[1736512031152,3.2078,3300.1,3300.0,0.30304]
[1736512031357,3.51083,3300.1,3300.0,0.30304]
[1736512032260,3.2078,3300.1,3300.0,0.30304]
[1736512036059,3.2078,3300.1,3300.0,2.63257529]
[1736512036261,5.95247853,3300.6,3300.0,2.63257529]
[1736512036262,8.39958853,3300.6,3300.5,0.30299]
[1736512037163,3.6617,3300.6,3300.5,0.30299]
[1736512038054,3.2078,3300.6,3300.5,0.30299]
[1736512038962,3.2078,3301.1,3300.4,0.7575]
[1736512039170,3.2078,3301.1,3301.0,0.30295]
[1736512039568,3.2078,3301.1,3300.8,40.8]
[1736512039864,3.51074,3301.1,3301.0,0.30295]
[1736512042269,3.2078,3301.1,3301.0,0.30295]
[1736512042764,3.2078,3301.1,3300.8,2.76893529]
[1736512042765,5.04079853,3301.4,3301.3,0.30292]
[1736512043072,0.30291,3301.4,3301.3,0.30292]
[1736512043368,0.30292,3301.3,3301.2,0.30292]
[1736512043578,0.30292,3301.4,3301.3,0.30291]
[1736512044162,0.30293,3301.3,3301.2,0.30292]
[1736512044766,0.30293,3301.2,3301.1,0.30293]
[1736512044969,3.6767,3301.5,3300.8,2.76893529]
[1736512045172,4.44725,3301.1,3301.0,0.30294]
[1736512046075,4.1443,3301.1,3301.0,0.30294]
[1736512047480,4.44724,3301.1,3301.0,0.30294]
[1736512049178,4.1443,3301.1,3301.0,0.30294]
[1736512049374,4.44724,3301.1,3301.0,0.30294]
[1736512051679,4.1443,3301.1,3300.8,0.4394]
[1736512051880,0.30296,3300.9,3300.8,0.74236]
[1736512054576,0.30296,3300.9,3300.8,0.30296]
[1736512061475,0.303,3300.5,3300.4,0.30299]
[1736512061678,0.30303,3300.3,3300.2,0.30301]
[1736512061888,0.30304,3300.2,3300.1,0.30302]
[1736512062185,3.96784,3300.2,3300.1,0.30302]
[1736512064581,0.30305,3300.0,3299.9,0.30304]
[1736512064782,0.76294,3300.1,3300.0,0.30304]
[1736512066688,0.30305,3300.0,3299.9,0.30304]
[1736512066986,0.4641,3300.0,3299.9,0.30304]
[1736512070986,0.76714,3300.0,3299.9,0.30304]
[1736512072291,0.4641,3300.0,3299.9,0.30304]
[1736512074494,0.76714,3300.0,3299.9,0.30304]
[1736512076998,0.76714,3300.0,3299.7,0.4477]
[1736512076999,0.4641,3300.0,3299.7,0.4477]
[1736512077192,0.30308,3299.6,3299.5,0.30308]
[1736512077989,0.30309,3299.5,3299.4,1.24299]
[1736512078300,0.78029,3299.5,3299.4,1.24299]
[1736512078488,0.4772,3299.5,3299.4,1.24299]
[1736512079198,5.20481295,3299.5,3299.4,1.24299]
[1736512080096,0.4772,3299.5,3299.4,1.24299]
[1736512080302,0.78029,3299.5,3299.4,1.24299]
[1736512080992,0.78029,3299.5,3299.4,0.9399]
[1736512081186,0.78029,3299.5,3299.4,0.4701]
[1736512081391,6.13331295,3299.5,3299.2,0.30311]
[1736512081591,3.5109,3299.3,3299.2,0.30311]
[1736512081797,0.30311,3299.2,3299.1,1.24592]
[1736512081993,0.30311,3299.2,3298.1,1.761438]
[1736512081994,0.30315,3298.9,3298.5,0.75794]
[1736512082300,0.30317,3298.7,3298.6,0.30315]
[1736512082601,0.30317,3298.6,3298.5,0.77647]
[1736512083296,1.3718,3298.8,3298.5,0.4733]
[1736512083500,6.40256295,3298.8,3298.7,0.30316]
[1736512084102,0.30317,3298.7,3298.6,0.30316]
[1736512084400,0.30317,3298.6,3298.4,0.30318]
[1736512084595,3.2078,3298.5,3298.2,0.8988]
[1736512084796,0.3032,3298.4,3298.3,40.8]
[1736512085393,0.3032,3298.3,3297.8,0.30324]
[1736512085593,0.3032,3298.3,3298.2,0.3032]
[1736512086197,0.30321,3298.2,3298.1,0.30321]
[1736512086407,0.30323,3298.0,3297.9,0.30323]
[1736512087302,0.30323,3297.9,3297.8,1.20204]
[1736512087505,3.2078,3298.1,3297.8,0.8988]
[1736512087805,0.30323,3298.0,3297.9,0.30322]
[1736512088404,3.2078,3298.1,3297.8,0.8988]
[1736512088604,0.30323,3297.9,3297.8,1.20204]
[1736512089202,0.30323,3297.9,3297.8,0.8988]
[1736512089409,0.30325,3297.8,3297.7,0.30325]
[1736512089703,0.30324,3297.9,3297.8,0.30324]
[1736512090107,0.30325,3297.8,3297.7,0.30325]
[1736512090995,3.2078,3298.1,3297.5,0.8805]
[1736512091203,3.2078,3298.1,3298.0,0.30322]
[1736512092212,3.2078,3298.1,3297.5,0.8805]
[1736512092500,0.30324,3297.9,3297.8,0.30323]
[1736512093100,0.74354,3297.9,3297.8,0.30323]
[1736512093496,0.74354,3297.9,3297.8,40.8]
[1736512093703,0.4403,3297.9,3297.5,0.8805]
[1736512093904,0.30326,3297.7,3297.6,0.30325]
[1736512094205,0.30325,3297.8,3297.7,0.30324]
[1736512094407,0.30325,3297.8,3297.7,0.30325]
[1736512096410,0.30326,3297.7,3297.6,0.30326]
[1736512096807,0.4403,3297.9,3297.5,41.6805]
[1736512097110,0.74354,3297.9,3297.8,0.30324]
[1736512097417,0.30325,3297.8,3297.7,0.30325]
[1736512097808,0.4403,3297.9,3297.8,0.30324]
[1736512098112,0.74353,3297.9,3297.8,0.30324]
[1736512098507,0.4403,3297.9,3297.5,41.6805]
[1736512098811,0.30325,3297.8,3297.7,0.30324]
[1736512100311,0.4403,3297.9,3297.5,0.8805]
[1736512100516,0.30326,3297.7,3297.6,0.30325]
[1736512100809,0.30325,3297.8,3297.7,0.30324]
[1736512102214,0.73765,3297.8,3297.7,0.30324]
[1736512104414,0.30326,3297.7,3297.6,0.30325]
[1736512104715,1.6454,3297.8,3297.5,0.8805]
[1736512104911,3.51106,3297.7,3297.6,0.30325]
[1736512105816,3.51106,3297.7,3297.5,0.74186]
[1736512105817,0.30326,3297.6,3297.5,0.74186]
[1736512106515,0.30326,3297.6,3297.2,42.46754]
[1736512106516,0.30327,3297.5,3297.4,0.30328]
[1736512106818,0.74477,3297.5,3297.4,0.30328]
[1736512107316,0.74477,3297.5,3297.3,0.4638]
[1736512107317,0.4415,3297.5,3297.2,40.8]
[1736512107519,0.30332,3297.0,3296.9,0.76711]
[1736512107818,0.30332,3297.0,3296.9,0.4638]
[1736512108020,0.30332,3297.0,3296.9,0.76712]
[1736512108217,0.30334,3296.7,3296.6,1.21265]
[1736512108819,0.30334,3296.8,3296.7,0.30334]
[1736512110121,0.30334,3296.7,3296.6,0.77134]
[1736512110718,0.30335,3296.6,3296.5,0.30336]
[1736512110922,3.6493,3296.9,3296.4,0.4638]
[1736512110923,0.30336,3296.5,3296.4,0.4638]
[1736512111216,3.51116,3296.5,3296.4,0.76717]
[1736512111519,3.51116,3296.5,3296.3,0.4349]
[1736512111520,0.30337,3296.4,3296.3,0.73828]
[1736512112019,0.30337,3296.5,3296.4,0.30337]
[1736512112917,3.2078,3296.6,3296.3,0.4349]
[1736512113319,0.30337,3296.5,3296.4,0.30336]
[1736512114220,3.2078,3296.6,3296.3,0.4349]
[1736512114421,3.9662,3296.6,3296.1,0.4621]
[1736512114622,0.30339,3296.3,3296.2,0.30338]
[1736512114818,0.30338,3296.4,3296.3,0.30337]
[1736512115122,0.77067,3296.5,3296.4,0.30337]
[1736512116127,0.30337,3296.5,3296.4,0.30337]
[1736512118126,3.2078,3296.6,3296.1,0.4621]
[1736512118425,0.30339,3296.2,3296.1,0.4621]
[1736512118622,0.30339,3296.2,3296.1,0.7655]
[1736512118820,0.30339,3296.2,3296.1,0.4621]
[1736512119720,0.3034,3296.1,3296.0,0.7535]
[1736512119921,0.3034,3296.1,3296.0,1.2286]
[1736512120326,0.3034,3296.1,3296.0,1.22861]
[1736512120921,3.2078,3296.2,3296.1,0.3034]
[1736512121122,0.74627,3296.4,3296.3,0.30338]
[1736512121624,3.51116,3296.6,3296.5,0.30336]
[1736512122123,0.30337,3296.5,3296.4,0.30336]
[1736512123728,0.30338,3296.4,3296.3,0.30337]
[1736512126329,0.3034,3296.2,3296.1,0.30339]
[1736512126525,3.08794529,3296.5,3296.0,0.9252]
[1736512126727,0.3034,3296.1,3296.0,1.22861]
[1736512127435,1.19384,3296.4,3296.0,0.9252]
[1736512127436,0.30338,3296.3,3296.0,0.9252]
[1736512127623,0.30171825,3296.3,3296.2,0.30339]
[1736512127827,0.30171825,3296.3,3296.0,0.9252]
[1736512127828,0.3034,3296.2,3296.1,0.30339]
[1736512128032,1.2279,3296.2,3296.1,0.30339]
[1736512128327,4.4357,3296.2,3296.1,0.30339]
[1736512129336,0.3034,3296.1,3296.0,0.7785]
[1736512129737,3.6732,3296.2,3295.7,0.9147]
[1736512130032,3.9766,3296.2,3296.1,0.3034]
[1736512130230,0.30341,3296.1,3296.0,0.3034]
[1736512131130,0.30342,3296.0,3295.9,0.30341]
[1736512133633,3.2078,3296.2,3296.1,0.3034]
[1736512134034,3.51119,3296.2,3296.1,0.3034]
[1736512134937,3.2078,3296.2,3295.8,0.4413]
[1736512135244,0.30342,3296.1,3296.0,0.3034]
[1736512137437,5.53733529,3296.2,3295.8,0.4413]
[1736512137637,2.32953529,3295.9,3295.6,3.2078]
[1736512137942,0.4438,3295.8,3295.4,0.4421]
[1736512138137,0.30345,3295.6,3295.5,0.30344]
[1736512138842,0.30343,3295.8,3295.7,0.30343]
[1736512139144,1.51643,3295.9,3295.8,0.30343]
[1736512139335,1.213,3295.9,3295.8,0.30343]
[1736512140947,3.2078,3296.2,3296.1,0.3034]
[1736512141140,3.51119,3296.2,3296.1,0.3034]
[1736512141444,3.2078,3296.2,3296.1,0.3034]
[1736512145846,0.4669,3296.5,3295.9,2.76093529]
[1736512146045,4.72416,3296.6,3296.5,0.30336]
[1736512146339,4.72416,3296.6,3296.0,0.75851]
[1736512146646,4.72416,3296.6,3296.3,0.30337]
[1736512146647,0.30338,3296.4,3296.3,0.30337]
[1736512146846,0.30337,3296.5,3296.4,0.30336]
[1736512149149,0.30339,3296.3,3296.2,0.30338]
[1736512150345,0.30339,3296.3,3295.9,0.4314]
[1736512150346,0.30339,3296.2,3295.9,0.30341]
[1736512150538,3.2078,3296.1,3295.8,0.4781]
[1736512150742,0.30342,3296.0,3295.9,0.30341]
[1736512151846,3.2078,3296.1,3296.0,0.30341]
[1736512152948,3.5112,3296.1,3296.0,0.30341]
[1736512153147,3.2078,3296.1,3296.0,0.30341]
[1736512153547,7.94265965,3296.1,3296.0,0.30341]
[1736512154146,4.73485965,3296.1,3296.0,0.30341]
[1736512154943,4.73485965,3296.2,3296.1,0.3034]
[1736512155348,5.03824965,3296.2,3296.1,0.3034]
[1736512156845,0.30339,3296.2,3296.1,0.3034]
[1736512159451,5.92637133,3296.3,3295.9,0.75855]
[1736512159654,6.22976133,3296.3,3296.2,0.30339]
[1736512159852,0.30339,3296.3,3296.2,0.30339]
[1736512160051,0.30339,3296.3,3296.2,41.10339]
[1736512162754,5.92637133,3296.4,3296.2,40.8]
[1736512162949,5.92637133,3296.4,3296.3,0.30338]
[1736512163151,4.41627,3296.5,3296.4,0.30337]
[1736512163648,4.1129,3296.5,3296.4,0.30337]
[1736512163848,3.6459,3296.5,3296.4,0.30337]
[1736512164746,0.4381,3296.5,3296.4,0.30337]
[1736512166149,6.36374157,3296.5,3296.4,0.30337]
[1736512167256,0.4381,3296.5,3296.4,0.30337]
[1736512168351,3.2078,3296.6,3296.4,40.8]
[1736512168552,3.2078,3296.6,3296.5,0.30336]
[1736512169252,7.11964373,3296.8,3296.7,0.30334]
[1736512169451,7.11964373,3296.8,3296.7,41.10334]
[1736512169751,5.92646548,3296.9,3296.8,0.30333]
[1736512169951,5.92646548,3296.9,3296.8,1.19483]
[1736512170752,6.22978548,3297.0,3296.8,0.8915]
[1736512170957,6.22978548,3297.0,3296.9,0.30332]
[1736512171360,5.92646548,3297.0,3296.9,0.30332]
[1736512173759,4.73645084,3297.0,3296.9,0.30332]
[1736512174554,4.73645084,3297.1,3297.0,0.30332]
[1736512175559,5.03975084,3297.2,3297.1,0.30331]
[1736512175751,8.24755084,3297.2,3297.1,0.30331]
[1736512176666,7.94425084,3297.2,3297.1,0.30331]
[1736512176966,8.24755084,3297.2,3297.1,0.30331]
[1736512177460,7.94425084,3297.2,3297.1,0.30331]
[1736512178874,3.2078,3297.2,3297.1,0.30331]
[1736512180875,3.6619,3297.2,3297.1,0.30331]
[1736512182177,8.39835084,3297.2,3297.1,0.30331]
[1736512184279,7.94425084,3297.2,3297.1,0.30331]
[1736512184677,3.2078,3297.2,3297.1,0.30331]
[1736512184975,7.94425084,3297.3,3297.2,0.3033]
[1736512185171,8.24754084,3297.3,3297.2,0.3033]
[1736512185675,7.94425084,3297.3,3297.2,0.3033]
[1736512185882,3.2078,3297.3,3297.2,0.3033]
[1736512186180,3.51109,3297.3,3297.2,0.3033]
[1736512187682,0.30329,3297.3,3297.2,0.3033]
[1736512188186,8.24158517,3297.3,3297.2,0.3033]
[1736512189383,7.93829517,3297.3,3297.2,0.3033]
[1736512189581,8.24158517,3297.3,3297.2,0.3033]
[1736512189778,7.93829517,3297.3,3297.2,0.3033]
[1736512190583,3.2078,3297.3,3297.2,0.3033]
[1736512192082,8.24154517,3297.8,3297.7,0.30325]
[1736512192287,8.69534517,3297.8,3297.7,0.30325]
[1736512192587,8.39209517,3297.8,3297.7,0.30325]
[1736512192986,8.69533517,3297.8,3297.7,0.30325]
[1736512193486,3.96484,3297.8,3297.7,0.30325]
[1736512196884,3.6616,3297.8,3297.4,0.4593]
[1736512197090,0.30327,3297.5,3297.4,0.30326]
[1736512199186,0.30327,3297.6,3297.5,0.30326]
[1736512200693,4.73049517,3297.7,3297.6,0.30326]
[1736512201281,4.73049517,3297.7,3297.5,0.4673]
[1736512201282,3.96485,3297.8,3297.7,0.30325]
[1736512201480,3.6616,3297.8,3297.7,0.30325]
[1736512202089,3.96484,3297.8,3297.7,0.30325]
[1736512202486,3.6616,3297.8,3297.7,0.30325]
[1736512203993,8.69510282,3297.8,3297.7,0.30325]
[1736512204193,8.39186282,3297.8,3297.7,0.30325]
[1736512204795,5.18406282,3297.8,3297.7,0.30325]
[1736512204992,8.39186282,3297.8,3297.7,0.30325]
[1736512205194,3.6616,3297.8,3297.7,0.30325]
[1736512211991,8.39186282,3297.8,3297.7,0.30325]
[1736512212993,8.39186282,3297.8,3297.7,41.10325]
[1736512214098,8.39186282,3297.8,3297.7,0.30325]
[1736512214399,7.93806282,3297.8,3297.7,0.30325]
[1736512214595,7.93806282,3297.8,3297.7,41.10325]
[1736512214890,4.73026282,3297.8,3297.7,41.10325]
[1736512215497,4.73026282,3298.0,3297.9,0.30323]
[1736512215796,4.73026282,3298.0,3297.9,1.40751473]
[1736512216797,3.6741,3298.2,3298.1,0.30321]
[1736512217098,3.6741,3298.2,3298.1,1.40749473]
[1736512218397,3.6741,3298.2,3298.1,1.86249473]
[1736512219302,3.6741,3298.2,3298.1,0.75821]
[1736512220201,9.12091044,3298.2,3298.1,1.86249473]
[1736512221402,3.17925291,3298.2,3298.1,6.86249473]
[1736512221599,3.2078,3299.0,3298.8,0.30315]
[1736512221800,8.27835461,3298.9,3298.8,1.40743473]
[1736512223197,0.4591,3299.1,3299.0,0.30313]
[1736512228411,0.76222,3299.1,3299.0,0.30313]
[1736512228703,0.4591,3299.1,3299.0,0.30313]
[1736512231009,0.30317,3298.6,3298.5,0.30316]
[1736512231202,0.3032,3298.4,3298.3,0.30319]
[1736512231507,3.2078,3298.4,3297.7,40.8]
[1736512231807,3.99903799,3298.5,3297.6,5.51733165]
[1736512231808,3.2078,3298.0,3297.6,4.75919165]
[1736512231997,3.2078,3298.0,3297.6,7.84792964]
[1736512232204,0.4675,3298.2,3298.1,0.30321]
[1736512232399,0.4574,3298.3,3298.2,0.30321]
[1736512234507,0.7606,3298.3,3298.2,0.30321]
[1736512235309,0.4574,3298.3,3298.2,0.30321]
[1736512241313,0.7606,3298.3,3298.2,0.30321]
[1736512241510,0.4574,3298.3,3298.2,0.30321]
[1736512242314,0.7606,3298.3,3298.2,0.30321]
[1736512243318,0.4574,3298.3,3298.2,0.30321]
[1736512243913,0.4675,3298.5,3298.0,2.33058799]
[1736512244110,0.4675,3298.5,3298.4,0.30319]
[1736512244414,3.2078,3298.6,3298.5,0.30318]
[1736512244920,6.37229063,3298.8,3298.7,0.30316]
[1736512244921,5.90359063,3298.8,3298.7,0.30316]
[1736512245215,5.90359063,3298.8,3298.7,2.63374799]
[1736512245814,3.2078,3299.0,3298.5,41.2421]
[1736512246021,3.2078,3299.0,3298.9,0.30314]
[1736512248518,3.51093,3299.0,3298.9,0.30314]
[1736512249213,3.51093,3299.0,3298.6,0.75792]
[1736512249214,3.2078,3299.0,3298.2,0.75801]
[1736512249415,4.4178,3299.0,3298.2,0.75801]
[1736512249624,0.30317,3298.7,3298.6,0.30316]
[1736512250523,4.4178,3299.0,3298.2,0.75801]
[1736512250717,0.30315,3298.9,3298.8,0.30314]
[1736512250923,4.4178,3299.0,3298.4,0.75796]
[1736512251124,4.72094,3299.0,3298.9,0.30314]
[1736512251927,0.30316,3298.8,3298.7,0.30315]
[1736512252424,4.4178,3299.0,3298.4,0.75796]
[1736512252719,0.4606,3298.7,3298.6,0.30317]
[1736512255025,0.76376,3298.7,3298.6,0.30317]
[1736512255218,0.4606,3298.7,3298.6,0.30317]
[1736512257229,3.2078,3299.0,3298.4,2.33058799]
[1736512257433,3.2078,3299.0,3298.9,0.30314]
[1736512258133,9.11139063,3299.0,3298.9,0.30314]
[1736512261531,8.27835461,3299.5,3299.0,0.30313]
[1736512261532,5.90359063,3299.1,3299.0,0.30313]
[1736512261834,5.90359063,3299.1,3299.0,2.63371799]
[1736512262032,5.90359063,3299.1,3299.0,43.43371799]
[1736512262729,9.11139063,3299.5,3299.0,43.43371799]
[1736512262936,9.11139063,3299.5,3299.4,0.30309]
[1736512265038,3.2078,3299.5,3299.4,0.30309]
[1736512269440,3.2078,3299.5,3299.4,2.63367799]
[1736512269637,3.6628,3299.9,3299.5,0.75772]
[1736512269835,3.2078,3299.9,3299.8,0.30306]
[1736512270047,5.90359063,3300.2,3300.1,0.30303]
[1736512270739,0.4416,3300.3,3300.2,0.30302]
[1736512273336,0.4416,3300.3,3299.9,0.75761]
[1736512273535,3.2078,3300.1,3299.5,0.7577]
[1736512273732,3.2078,3299.7,3299.6,0.30308]
[1736512274037,0.30304,3300.0,3299.9,0.30305]
[1736512275745,3.2078,3300.1,3300.0,0.30304]
[1736512275937,3.51083,3300.1,3300.0,0.30304]
[1736512276244,3.2078,3300.1,3300.0,0.30304]
[1736512276542,3.51083,3300.1,3300.0,0.30304]
[1736512277049,0.30306,3299.9,3299.8,0.30305]
[1736512277345,0.30308,3299.7,3299.6,0.30306]
[1736512277540,0.30309,3299.6,3299.5,0.30308]
[1736512277844,1.18259,3299.6,3299.5,0.30308]
[1736512278037,0.8795,3299.6,3299.5,0.30308]
[1736512281145,0.8795,3299.6,3299.5,41.10308]
[1736512282747,0.4728,3299.8,3299.7,0.30307]
[1736512283643,0.8964,3299.9,3299.8,0.30306]
[1736512283845,0.4543,3299.9,3299.8,0.30306]
[1736512284449,0.4543,3299.9,3299.8,0.73976]
[1736512285348,0.00100542,3300.0,3299.9,0.30305]
[1736512289050,0.00100542,3300.0,3299.9,3.51085]
[1736512289549,0.00100542,3300.0,3299.9,4.40025]
[1736512290147,5.42e-06,3300.0,3299.9,4.40025]
[1736512293355,5.42e-06,3300.0,3299.9,45.20025]
[1736512294254,5.42e-06,3300.0,3299.9,50.20025]
[1736512294644,5.42e-06,3300.0,3299.9,45.20025]
[1736512302955,0.4427,3300.5,3299.9,44.8972]
[1736512303262,0.4427,3300.5,3300.4,0.303]
[1736512303960,0.4427,3300.5,3300.4,41.103]
[1736512326586,0.4089,3300.6,3300.5,0.30299]
[1736512326887,0.4623,3300.8,3300.7,0.30298]
[1736512326888,0.3712,3300.8,3300.7,0.30298]
[1736512327086,0.3712,3300.8,3300.7,2.63356799]
[1736512328183,0.3712,3300.8,3300.7,0.30298]
[1736512335592,6.30419264,3300.8,3300.7,0.30298]
[1736512336784,0.3712,3300.8,3300.7,0.30298]
[1736512340792,6.30487583,3300.8,3300.7,0.30298]
[1736512341591,0.3712,3300.8,3300.7,0.30298]
[1736512344692,0.67417,3300.8,3300.7,0.30298]
[1736512345688,0.30299,3300.6,3300.5,0.30298]
[1736512346488,3.23238799,3300.7,3300.2,4.75919165]
[1736512346684,0.30303,3300.2,3300.1,0.30302]
[1736512346992,0.30303,3300.1,3300.0,4.04159165]
[1736512347295,0.30305,3299.9,3299.8,4.48357913]
[1736512347492,3.51085,3299.9,3299.8,4.48357913]
[1736512348593,0.30307,3299.7,3299.6,0.30307]
[1736512350597,3.2078,3299.9,3299.1,0.4465]
[1736512350898,0.30307,3299.7,3299.6,0.30307]
[1736512354198,5.90706408,3299.7,3299.6,0.30307]
[1736512354593,6.21013408,3299.7,3299.6,0.30307]
[1736512354788,5.90706408,3299.7,3299.6,0.30307]
[1736512355300,2.63364799,3299.8,3299.7,0.30307]
[1736512355598,3.2078,3299.9,3299.2,0.75779]
[1736512355799,3.2078,3299.9,3299.8,0.30306]
[1736512356204,3.2078,3299.9,3299.8,41.10306]
[1736512356392,3.2078,3299.9,3299.8,0.30306]
[1736512356594,3.51085,3299.9,3299.8,0.30306]
[1736512358706,3.2078,3299.9,3299.8,0.30306]
[1736512359201,4.72462406,3300.2,3299.8,0.30306]
[1736512359397,4.72462406,3300.2,3300.1,0.30303]
[1736512360104,3.2078,3300.3,3300.2,0.30302]
[1736512360803,3.2078,3300.3,3299.9,3.96541]
[1736512360804,7.93242406,3300.8,3300.1,0.75758]
[1736512360999,7.93242406,3300.8,3300.7,0.30298]
[1736512361000,3.51077,3300.8,3300.7,0.30298]
[1736512361197,0.30297,3300.8,3300.7,0.30298]
[1736512361601,3.51077,3300.8,3300.7,0.30298]
[1736512362407,3.2078,3300.8,3300.7,0.30298]
[1736512365407,3.2078,3300.8,3300.6,2.33058799]
[1736512365408,0.30294,3301.2,3300.6,2.33058799]
[1736512365607,3.51074,3301.2,3301.1,0.30294]
[1736512366411,0.30294,3301.2,3301.1,0.30294]
[1736512367221,5.02755406,3301.3,3301.2,0.30293]
[1736512367516,0.30293,3301.3,3301.2,0.30293]
[1736512369214,4.72462406,3301.4,3301.3,0.30292]
[1736512369610,5.02753406,3301.4,3301.3,0.30292]
[1736512370313,0.30291,3301.4,3301.3,0.30292]
[1736512373522,1.208,3301.5,3301.1,0.4538]
[1736512373721,1.51091,3301.5,3301.4,0.30291]
[1736512374021,1.208,3301.5,3301.1,0.4538]
[1736512374223,0.30293,3301.3,3301.2,0.30292]
[1736512374429,3.51073,3301.3,3301.2,0.30292]
[1736512380523,3.51073,3301.3,3301.0,0.76584]
[1736512380524,0.30294,3301.1,3301.0,0.76584]
[1736512381816,0.30295,3301.0,3300.9,0.4473]
[1736512382019,0.30297,3300.8,3300.7,0.74057]
[1736512382220,0.30297,3300.8,3300.7,0.30297]
[1736512382827,0.30298,3300.7,3300.6,0.30298]
[1736512383714,1.208,3300.8,3300.3,0.4739]
[1736512383920,1.208,3300.8,3299.8,40.8]
[1736512383921,0.30302,3300.2,3300.1,0.4582]
[1736512384227,0.30304,3300.1,3300.0,0.30304]
[1736512384522,0.30304,3300.1,3299.9,0.9461]
[1736512384523,3.2078,3300.1,3299.9,0.9461]
[1736512384730,0.30304,3300.0,3299.9,0.9461]
[1736512385020,0.30306,3299.9,3299.8,0.30305]
[1736512386228,0.30305,3300.0,3299.9,0.30304]
[1736512387823,8.23545406,3300.2,3300.1,0.30303]
[1736512388028,0.30305,3300.0,3299.9,0.30304]
[1736512389127,3.2078,3300.2,3299.7,0.9461]
[1736512389330,0.30304,3300.1,3300.0,0.30303]
[1736512393425,3.2078,3300.2,3299.7,0.9461]
[1736512393730,0.30304,3300.1,3300.0,0.30303]
[1736512396123,0.30306,3300.0,3299.9,0.30304]
[1736512419551,0.30306,3299.8,3299.7,0.4722]
[1736512419860,0.75771,3299.6,3299.2,0.4521]
[1736512420048,4.61358954,3299.4,3299.3,0.8788]
[1736512421459,4.31049954,3299.4,3299.0,1.29248]
[1736512421652,1.40581954,3299.1,3299.0,1.29248]
[1736512422645,4.72462406,3299.2,3299.0,1.59561]
[1736512422854,4.72462406,3299.2,3299.1,2.30911954]
[1736512423156,4.72462406,3299.2,3299.1,0.4339]
[1736512423157,1.40580954,3299.2,3299.1,0.4339]
[1736512423351,1.40580954,3299.2,3299.0,1.29248]
[1736512423352,0.4677,3299.3,3299.0,1.29248]
[1736512423552,0.30312,3299.1,3299.0,1.29248]
[1736512424356,6.21106104,3299.1,3299.0,1.29248]
[1736512424858,6.21106104,3299.1,3299.0,1.59561]
[1736512425054,5.90794104,3299.1,3299.0,1.59561]
[1736512425465,5.18994104,3299.2,3299.0,1.29248]
[1736512425665,5.18994104,3299.2,3299.1,0.30312]
[1736512425974,4.47194104,3299.2,3299.1,41.10312]
[1736512426475,4.72746834,3299.5,3299.1,41.10312]
[1736512426776,4.72746834,3299.5,3299.4,0.30309]
[1736512427467,4.72746834,3299.5,3299.4,41.10309]
[1736512427768,0.30307,3299.7,3299.6,0.30308]
[1736512429580,0.30307,3299.7,3299.6,0.74948]
[1736512430068,3.51086,3299.8,3299.7,0.30307]
[1736512437178,0.76605,3299.9,3299.8,0.30306]
[1736512437480,3.51083,3300.2,3300.1,0.30303]
[1736512438577,3.2078,3300.2,3299.9,0.4601]
[1736512438774,0.30307,3299.8,3299.7,0.30305]
[1736512443489,0.7576,3300.1,3299.5,0.4601]
[1736512443777,0.77478,3299.7,3299.6,0.30307]
[1736512443980,6.01057383,3299.7,3299.3,0.4737]
[1736512444186,0.4315,3299.6,3299.2,0.4762]
[1736512444381,3.2078,3299.3,3299.0,1.29248]
[1736512444582,0.30312,3299.1,3299.0,1.29248]
[1736512444784,2.63419383,3299.1,3299.0,1.29248]
[1736512445087,0.30318,3298.5,3298.4,7.43159101]
[1736512445583,0.30317,3298.6,3298.5,0.30316]
[1736512445887,0.77486,3298.7,3298.6,0.30316]
[1736512449095,1.208,3299.0,3298.9,0.30314]
[1736512449391,1.51113,3299.0,3298.9,0.30314]
[1736512450082,1.208,3299.0,3298.9,0.30314]
[1736512450686,3.2078,3299.2,3298.8,0.466]
[1736512450885,3.2078,3299.2,3299.1,0.30312]
[1736512451285,3.51091,3299.2,3299.1,0.30312]
[1736512451686,0.30314,3299.1,3299.0,0.30313]
[1736512451898,1.22154,3299.1,3299.0,0.30313]
[1736512456188,0.9184,3299.1,3299.0,0.30313]
[1736512456992,0.75784,3299.0,3298.3,0.4731]
[1736512457189,4.45747383,3299.1,3298.3,0.4731]
[1736512457190,2.33107383,3298.6,3298.3,0.4731]
[1736512457397,0.30318,3298.5,3298.4,0.30318]
[1736512457594,0.73988,3298.5,3298.4,0.30318]
[1736512460604,0.30319,3298.4,3298.3,0.77629]
[1736512466303,0.3032,3298.3,3298.2,0.458]
[1736512466503,0.30321,3298.2,3298.1,0.30321]
[1736512467708,0.3032,3298.3,3298.2,0.3032]
[1736512468307,3.53907383,3298.3,3297.8,40.8]
[1736512468607,0.30328,3297.4,3297.3,4.75470228]
[1736512469104,0.30328,3297.4,3297.3,5.05799228]
[1736512469702,0.30328,3297.4,3297.3,0.30329]
[1736512470607,0.30329,3297.3,3297.2,1.22999]
[1736512471006,0.30328,3297.4,3297.3,0.30328]
[1736512471203,3.2078,3297.6,3297.5,0.30327]
[1736512477904,3.2078,3297.6,3297.1,2.33107383]
[1736512478106,0.30338,3296.3,3296.2,2.20293229]
[1736512478314,0.30339,3296.2,3296.1,1.68911242]
[1736512478612,0.73699,3296.2,3296.1,42.48911242]
[1736512479113,3.51119,3296.3,3296.1,42.48911242]
[1736512479306,3.2078,3296.3,3296.1,42.48911242]
[1736512479616,3.2078,3296.3,3296.2,0.30339]
[1736512479813,3.2078,3296.3,3296.2,0.76489]